fUSD/lending_fUSD_20260620
["ID","MTS","AMOUNT","RATE_DAILY","PERIOD"]
[425780279,1781888098000,-2137.39,0.00036109,30]
[425780281,1781888098000,-1423.78,0.00036109,30]
[425780282,1781888098000,-1391.17,0.00036109,30]
[425780283,1781888098000,-1656.0,0.00036109,30]
[425780285,1781888098000,-721.41,0.00036109,30]
[425780286,1781888098000,-857.32,0.00036109,30]
[425780278,1781888098000,-510.64,0.00036109,30]
[425780287,1781888099000,-500.0,0.00036109,30]
[425780288,1781888099000,-534.92,0.00036109,30]
[425780289,1781888099000,-961.56,0.00036109,30]
[425780290,1781888099000,-500.0,0.00036109,30]
[425780291,1781888099000,-1123.62,0.00036109,30]
[425780292,1781888099000,-500.0,0.00036109,30]
[425780294,1781888099000,-500.0,0.00036109,30]
[425780293,1781888099000,-3646.26,0.00036109,30]
[425780295,1781888099000,-1427.66,0.00036109,30]
[425780296,1781888099000,-631.67,0.00036109,30]
[425780303,1781888099000,-534.69,0.00036164,60]
[425780302,1781888099000,-1000.0,0.00036163,30]
[425780301,1781888099000,-150.0,0.00036154,120]
[425780304,1781888099000,-433.0,0.00036164,30]
[425780299,1781888099000,-562.71,0.00036109,30]
[425780298,1781888099000,-500.0,0.00036109,30]
[425780297,1781888099000,-711.69,0.00036109,30]
[425780300,1781888099000,-500.0,0.00036109,30]
[425780311,1781888100000,-500.0,0.00036164,30]
[425780306,1781888100000,-902.01,0.00036164,30]
[425780305,1781888100000,-500.0,0.00036164,30]
[425780308,1781888100000,-625.28,0.00036164,30]
[425780307,1781888100000,-500.0,0.00036164,30]
[425780309,1781888100000,-577.1,0.00036164,30]
[425780310,1781888100000,-500.0,0.00036164,30]
[425780313,1781888100000,-661.85,0.00036164,30]
[425780321,1781888100000,-694.32,0.00036164,30]
[425780314,1781888100000,-537.63,0.00036164,30]
[425780315,1781888100000,-500.0,0.00036164,30]
[425780317,1781888100000,-522.5415378,0.00036164,30]
[425780316,1781888100000,-999.39,0.00036164,30]
[425780318,1781888100000,-1241.89,0.00036164,30]
[425780320,1781888100000,-1441.61,0.00036164,30]
[425780319,1781888100000,-500.0,0.00036164,30]
[425780312,1781888100000,-1471.17,0.00036164,30]
[425780322,1781888101000,-500.0,0.00036164,30]
[425780323,1781888101000,-1071.98,0.00036164,30]
[425780324,1781888101000,-768.18,0.00036164,30]
[425780325,1781888101000,-1111.1,0.00036164,30]
[425780326,1781888101000,-500.0,0.00036164,30]
[425780327,1781888101000,-500.0,0.00036164,30]
[425780328,1781888101000,-1407.87,0.00036164,30]
[425780331,1781888101000,-802.05,0.00036164,30]
[425780329,1781888101000,-500.0,0.00036164,30]
[425780332,1781888101000,-500.0,0.00036164,30]
[425780339,1781888101000,-808.38,0.00036164,30]
[425780338,1781888101000,-563.16,0.00036164,30]
[425780336,1781888101000,-500.0,0.00036164,30]
[425780330,1781888101000,-884.27,0.00036164,30]
[425780334,1781888101000,-1677.91,0.00036164,30]
[425780335,1781888101000,-636.34,0.00036164,30]
[425780333,1781888101000,-500.0,0.00036164,30]
[425780337,1781888101000,-500.0,0.00036164,30]
[425780347,1781888102000,-500.0,0.00036164,30]
[425780342,1781888102000,-586.92,0.00036164,30]
[425780341,1781888102000,-500.0,0.00036164,30]
[425780343,1781888102000,-793.97,0.00036164,30]
[425780344,1781888102000,-500.0,0.00036164,30]
[425780345,1781888102000,-517.68,0.00036164,30]
[425780346,1781888102000,-502.59,0.00036164,30]
[425780348,1781888102000,-588.77,0.00036164,30]
[425780340,1781888102000,-500.0,0.00036164,30]
[425780350,1781888102000,-559.72,0.00036164,30]
[425780356,1781888102000,-500.0,0.00036164,30]
[425780357,1781888102000,-500.0,0.00036164,30]
[425780354,1781888102000,-500.0,0.00036164,30]
[425780358,1781888102000,-631.31,0.00036164,30]
[425780352,1781888102000,-545.05,0.00036164,30]
[425780353,1781888102000,-500.0,0.00036164,30]
[425780351,1781888102000,-500.0,0.00036164,30]
[425780355,1781888102000,-500.0,0.00036164,30]
[425780349,1781888102000,-1622.56,0.00036164,30]
[425780365,1781888103000,-997.89,0.00036164,30]
[425780359,1781888103000,-563.83,0.00036164,30]
[425780360,1781888103000,-500.0,0.00036164,30]
[425780361,1781888103000,-677.13,0.00036164,30]
[425780362,1781888103000,-500.0,0.00036164,30]
[425780363,1781888103000,-719.45,0.00036164,30]
[425780364,1781888103000,-873.12,0.00036164,30]
[425780366,1781888103000,-786.02,0.00036164,30]
[425780367,1781888103000,-579.64,0.00036164,30]
[425780369,1781888103000,-500.0,0.00036164,30]
[425780370,1781888103000,-478.98146472,0.00036164,30]
[425780371,1781888103000,-544.21,0.00036164,30]
[425780373,1781888103000,-210.47879033,0.00036164,30]
[425780372,1781888103000,-500.0,0.00036164,30]
[425780374,1781888103000,-549.11,0.00036164,30]
[425780375,1781888103000,-1173.72,0.00036164,30]
[425780368,1781888103000,-1595.76,0.00036164,30]
[425780376,1781888104000,-513.57344038,0.00036164,30]
[425780377,1781888104000,-500.0,0.00036164,30]
[425780378,1781888104000,-500.0,0.00036164,30]
[425780379,1781888104000,-500.0,0.00036164,30]
[425780382,1781888104000,-779.91,0.00036164,30]
[425780380,1781888104000,-742.76,0.00036164,30]
[425780381,1781888104000,-1217.88,0.00036164,30]
[425780383,1781888104000,-511.18,0.00036164,30]
[425780388,1781888104000,-1320.43,0.00036164,30]
[425780385,1781888104000,-500.0,0.00036164,30]
[425780386,1781888104000,-2382.02,0.00036164,30]
[425780387,1781888104000,-500.0,0.00036164,30]
[425780389,1781888104000,-514.74,0.00036164,30]
[425780390,1781888104000,-500.0,0.00036164,30]
[425780391,1781888104000,-981.85,0.00036164,30]
[425780392,1781888104000,-1356.93,0.00036164,30]
[425780384,1781888104000,-1153.53,0.00036164,30]
[425780393,1781888105000,-500.0,0.00036164,30]
[425780394,1781888105000,-500.0,0.00036164,30]
[425780395,1781888105000,-552.40164605,0.00036164,30]
[425780397,1781888105000,-769.14,0.00036164,30]
[425780396,1781888105000,-758.06,0.00036164,30]
[425780399,1781888105000,-500.0,0.00036164,30]
[425780398,1781888105000,-1329.2,0.00036164,30]
[425780401,1781888105000,-500.0,0.00036164,30]
[425780400,1781888105000,-544.12,0.00036164,30]
[425780402,1781888105000,-641.52,0.00036164,30]
[425780410,1781888105000,-500.0,0.00036164,30]
[425780408,1781888105000,-500.0,0.00036164,30]
[425780407,1781888105000,-508.71,0.00036164,30]
[425780409,1781888105000,-500.0,0.00036164,30]
[425780405,1781888105000,-536.88,0.00036164,30]
[425780404,1781888105000,-500.0,0.00036164,30]
[425780403,1781888105000,-527.41,0.00036164,30]
[425780406,1781888105000,-500.0,0.00036164,30]
[425780417,1781888106000,-519.11916275,0.00036164,30]
[425780411,1781888106000,-531.64,0.00036164,30]
[425780412,1781888106000,-938.69,0.00036164,30]
[425780413,1781888106000,-578.3,0.00036164,30]
[425780414,1781888106000,-172.0,0.00036164,30]
[425780415,1781888106000,-1259.59,0.00036164,30]
[425780416,1781888106000,-568.98,0.00036164,30]
[425780418,1781888106000,-1095.52,0.00036164,30]
[425780428,1781888106000,-580.64,0.00036164,30]
[425780420,1781888106000,-500.0,0.00036164,30]
[425780421,1781888106000,-500.0,0.00036164,30]
[425780422,1781888106000,-808.45,0.00036164,30]
[425780424,1781888106000,-567.37,0.00036164,30]
[425780423,1781888106000,-500.0,0.00036164,30]
[425780426,1781888106000,-879.94,0.00036164,30]
[425780425,1781888106000,-809.71,0.00036164,30]
[425780427,1781888106000,-923.44,0.00036164,30]
[425780419,1781888106000,-576.54,0.00036164,30]
[425780435,1781888107000,-569.82,0.00036164,30]
[425780429,1781888107000,-500.0,0.00036164,30]
[425780430,1781888107000,-500.0,0.00036164,120]
[425780432,1781888107000,-500.0,0.00036164,30]
[425780433,1781888107000,-500.0,0.00036164,30]
[425780434,1781888107000,-747.58,0.00036164,30]
[425780436,1781888107000,-1017.11,0.00036164,30]
[425780431,1781888107000,-500.0,0.00036164,30]
[425780437,1781888107000,-500.0,0.00036164,30]
[425780445,1781888107000,-1060.51,0.00036164,30]
[425780443,1781888107000,-500.0,0.00036164,30]
[425780444,1781888107000,-599.46,0.00036164,30]
[425780438,1781888107000,-500.0,0.00036164,30]
[425780441,1781888107000,-613.4,0.00036164,30]
[425780440,1781888107000,-297.51474329,0.00036164,30]
[425780439,1781888107000,-674.8,0.00036164,30]
[425780442,1781888107000,-500.0,0.00036164,30]
[425780446,1781888108000,-588.74,0.00036164,30]
[425780448,1781888108000,-500.0,0.00036164,30]
[425780447,1781888108000,-821.24,0.00036164,30]
[425780450,1781888108000,-996.41,0.00036164,30]
[425780449,1781888108000,-725.68,0.00036164,30]
[425780452,1781888108000,-1684.99,0.00036164,30]
[425780451,1781888108000,-500.0,0.00036164,30]
[425780454,1781888108000,-554.08,0.00036164,30]
[425780455,1781888108000,-500.0,0.00036164,30]
[425780456,1781888108000,-1338.57,0.00036164,30]
[425780457,1781888108000,-569.17,0.00036164,30]
[425780458,1781888108000,-500.0,0.00036164,30]
[425780460,1781888108000,-662.39,0.00036164,30]
[425780459,1781888108000,-500.0,0.00036164,30]
[425780453,1781888108000,-517.19,0.00036164,30]
[425780461,1781888109000,-500.0,0.00036164,30]
[425780462,1781888109000,-263.01968456,0.00036164,30]
[425780463,1781888109000,-934.77,0.00036164,30]
[425780464,1781888109000,-500.0,0.00036164,30]
[425780465,1781888109000,-1014.09,0.00036164,30]
[425780466,1781888109000,-833.48,0.00036164,30]
[425780468,1781888109000,-507.51,0.00036164,30]
[425780467,1781888109000,-1286.29,0.00036164,30]
[425780471,1781888109000,-500.0,0.00036164,30]
[425780470,1781888109000,-500.0,0.00036164,30]
[425780473,1781888109000,-759.52,0.00036164,30]
[425780472,1781888109000,-500.0,0.00036164,30]
[425780474,1781888109000,-627.51,0.00036164,30]
[425780475,1781888109000,-547.43,0.00036164,30]
[425780476,1781888109000,-500.0,0.00036164,30]
[425780469,1781888109000,-500.0,0.00036164,30]
[425780477,1781888110000,-548.15,0.00036164,30]
[425780478,1781888110000,-500.0,0.00036164,30]
[425780479,1781888110000,-544.23,0.00036164,30]
[425780481,1781888110000,-500.0,0.00036164,30]
[425780480,1781888110000,-547.88,0.00036164,30]
[425780482,1781888110000,-500.0,0.00036164,30]
[425780484,1781888110000,-2045.07,0.00036164,30]
[425780483,1781888110000,-1348.31,0.00036164,30]
[425780487,1781888110000,-504.68105877,0.00036164,30]
[425780486,1781888110000,-537.97,0.00036164,30]
[425780488,1781888110000,-500.0,0.00036164,30]
[425780489,1781888110000,-500.0,0.00036164,30]
[425780490,1781888110000,-701.68,0.00036164,30]
[425780491,1781888110000,-879.59,0.00036164,30]
[425780492,1781888110000,-1145.24,0.00036164,30]
[425780485,1781888110000,-664.75,0.00036164,30]
[425780493,1781888111000,-906.68,0.00036164,30]
[425780499,1781888111000,-500.0,0.00036164,30]
[425780494,1781888111000,-500.0,0.00036164,30]
[425780495,1781888111000,-634.83,0.00036164,30]
[425780496,1781888111000,-500.0,0.00036164,30]
[425780497,1781888111000,-780.74,0.00036164,30]
[425780498,1781888111000,-594.02,0.00036164,30]
[425780500,1781888111000,-500.0,0.00036164,30]
[425780507,1781888111000,-1013.66,0.00036164,30]
[425780502,1781888111000,-500.0,0.00036164,30]
[425780509,1781888111000,-1109.66,0.00036164,30]
[425780508,1781888111000,-952.89,0.00036164,30]
[425780506,1781888111000,-577.97,0.00036164,30]
[425780501,1781888111000,-743.84,0.00036164,30]
[425780504,1781888111000,-2492.23,0.00036164,30]
[425780503,1781888111000,-1013.87,0.00036164,30]
[425780505,1781888111000,-500.0,0.00036164,30]
[425780511,1781888112000,-723.87,0.00036164,30]
[425780512,1781888112000,-2528.15,0.00036164,30]
[425780513,1781888112000,-695.27,0.00036164,30]
[425780514,1781888112000,-636.13,0.00036164,30]
[425780515,1781888112000,-1182.85,0.00036164,30]
[425780516,1781888112000,-620.19,0.00036164,30]
[425780518,1781888112000,-628.07,0.00036164,30]
[425780517,1781888112000,-500.0,0.00036164,30]
[425780510,1781888112000,-574.37,0.00036164,30]
[425780519,1781888112000,-722.6,0.00036164,30]
[425780527,1781888112000,-500.0,0.00036164,30]
[425780526,1781888112000,-636.4,0.00036164,30]
[425780525,1781888112000,-500.0,0.00036164,30]
[425780520,1781888112000,-918.47,0.00036164,30]
[425780523,1781888112000,-900.24,0.00036164,30]
[425780522,1781888112000,-662.33,0.00036164,30]
[425780521,1781888112000,-622.54856121,0.00036164,30]
[425780524,1781888112000,-500.0,0.00036164,30]
[425780528,1781888113000,-662.63,0.00036164,30]
[425780535,1781888113000,-658.41,0.00036164,30]
[425780530,1781888113000,-2588.84,0.00036164,30]
[425780532,1781888113000,-947.68,0.00036164,30]
[425780531,1781888113000,-500.0,0.00036164,30]
[425780533,1781888113000,-598.87,0.00036164,30]
[425780534,1781888113000,-970.43,0.00036164,30]
[425780529,1781888113000,-643.62,0.00036164,30]
[425780536,1781888113000,-1083.37,0.00036164,30]
[425780538,1781888113000,-846.54,0.00036164,30]
[425780539,1781888113000,-649.08,0.00036164,30]
[425780540,1781888113000,-650.2,0.00036164,30]
[425780541,1781888113000,-500.0,0.00036164,30]
[425780544,1781888113000,-1066.11,0.00036164,30]
[425780543,1781888113000,-1487.57,0.00036164,30]
[425780537,1781888113000,-500.0,0.00036164,30]
[425780542,1781888113000,-500.0,0.00036164,30]
[425780551,1781888114000,-5570.48,0.00036164,30]
[425780545,1781888114000,-585.97,0.00036164,30]
[425780546,1781888114000,-500.0,0.00036164,30]
[425780547,1781888114000,-846.43,0.00036164,30]
[425780549,1781888114000,-678.01,0.00036164,30]
[425780548,1781888114000,-1580.21,0.00036164,30]
[425780550,1781888114000,-697.26,0.00036164,30]
[425780553,1781888114000,-500.0,0.00036164,30]
[425780554,1781888114000,-411.43811532,0.00036164,30]
[425780556,1781888114000,-651.01,0.00036164,30]
[425780555,1781888114000,-734.22,0.00036164,30]
[425780558,1781888114000,-1586.38,0.00036164,30]
[425780557,1781888114000,-1473.35,0.00036164,30]
[425780559,1781888114000,-697.49,0.00036164,30]
[425780560,1781888114000,-755.8,0.00036164,30]
[425780552,1781888114000,-500.0,0.00036164,30]
[425780562,1781888115000,-860.38,0.00036164,30]
[425780563,1781888115000,-741.41,0.00036164,30]
[425780564,1781888115000,-505.49,0.00036164,30]
[425780565,1781888115000,-500.0,0.00036164,30]
[425780566,1781888115000,-1437.17,0.00036164,30]
[425780567,1781888115000,-500.0,0.00036164,30]
[425780568,1781888115000,-1064.26,0.00036164,30]
[425780569,1781888115000,-500.0,0.00036164,30]
[425780561,1781888115000,-522.21,0.00036164,30]
[425780571,1781888115000,-512.48,0.00036164,30]
[425780578,1781888115000,-500.0,0.00036164,30]
[425780577,1781888115000,-999.65,0.00036164,30]
[425780576,1781888115000,-802.44,0.00036164,30]
[425780570,1781888115000,-500.0,0.00036164,30]
[425780574,1781888115000,-1376.12,0.00036164,30]
[425780573,1781888115000,-515.79,0.00036164,30]
[425780572,1781888115000,-500.0,0.00036164,30]
[425780575,1781888115000,-807.08,0.00036164,30]
[425780586,1781888116000,-1214.29,0.00036164,30]
[425780580,1781888116000,-612.73,0.00036164,30]
[425780582,1781888116000,-710.03,0.00036164,30]
[425780581,1781888116000,-526.37,0.00036164,30]
[425780583,1781888116000,-1188.41,0.00036164,30]
[425780584,1781888116000,-500.0,0.00036164,30]
[425780585,1781888116000,-500.0,0.00036164,30]
[425780579,1781888116000,-500.0,0.00036164,30]
[425780587,1781888116000,-500.0,0.00036164,30]
[425780589,1781888116000,-2990.41,0.00036164,30]
[425780590,1781888116000,-1675.21,0.00036164,30]
[425780591,1781888116000,-500.0,0.00036164,30]
[425780592,1781888116000,-5534.69,0.00036164,30]
[425780593,1781888116000,-607.03,0.00036164,30]
[425780594,1781888116000,-500.0,0.00036164,30]
[425780595,1781888116000,-3792.83,0.00036164,30]
[425780588,1781888116000,-1458.25,0.00036164,30]
[425780597,1781888117000,-565.87,0.00036164,30]
[425780596,1781888117000,-500.0,0.00036164,30]
[425780599,1781888117000,-607.04,0.00036164,30]
[425780598,1781888117000,-151.0,0.00036164,30]
[425780601,1781888117000,-575.06,0.00036164,30]
[425780602,1781888117000,-583.597901,0.00036164,30]
[425780604,1781888117000,-583.597901,0.00036164,30]
[425780600,1781888117000,-500.0,0.00036164,30]
[425780606,1781888117000,-151.0,0.00036164,30]
[425780612,1781888117000,-445.774,0.00036164,30]
[425780611,1781888117000,-1164.63,0.00036164,30]
[425780610,1781888117000,-583.597904,0.00036164,30]
[425780603,1781888117000,-151.0,0.00036164,30]
[425780607,1781888117000,-583.597901,0.00036164,30]
[425780608,1781888117000,-445.774,0.00036164,30]
[425780605,1781888117000,-853.91,0.00036164,30]
[425780609,1781888117000,-559.13,0.00036164,30]
[425780620,1781888118000,-3075.0,0.00036164,30]
[425780615,1781888118000,-500.0,0.00036164,30]
[425780614,1781888118000,-445.774,0.00036164,30]
[425780616,1781888118000,-445.774,0.00036164,30]
[425780618,1781888118000,-151.0,0.00036164,30]
[425780617,1781888118000,-225.89569493,0.00036164,30]
[425780619,1781888118000,-151.0,0.00036164,30]
[425780621,1781888118000,-876.43,0.00036164,30]
[425780613,1781888118000,-500.0,0.00036164,30]
[425780623,1781888118000,-4074.72,0.00036164,30]
[425780630,1781888118000,-165.073802,0.00036164,30]
[425780628,1781888118000,-1444.74,0.00036164,30]
[425780629,1781888118000,-2092.1,0.00036164,30]
[425780622,1781888118000,-201.682642,0.00036164,30]
[425780626,1781888118000,-985.23,0.00036164,30]
[425780624,1781888118000,-151.0,0.00036164,30]
[425780625,1781888118000,-165.073802,0.00036164,30]
[425780627,1781888118000,-165.073802,0.00036164,30]
[425780638,1781888119000,-652.73,0.00036164,30]
[425780632,1781888119000,-1277.26,0.00036164,30]
[425780633,1781888119000,-650.27,0.00036164,30]
[425780634,1781888119000,-165.073801,0.00036164,30]
[425780635,1781888119000,-1776.22,0.00036164,30]
[425780636,1781888119000,-640.19,0.00036164,30]
[425780637,1781888119000,-842.27,0.00036164,30]
[425780631,1781888119000,-606.07,0.00036164,30]
[425780640,1781888119000,-500.0,0.00036164,30]
[425780641,1781888119000,-270.13259,0.00036164,30]
[425780643,1781888119000,-151.0,0.00036164,30]
[425780642,1781888119000,-500.0,0.00036164,30]
[425780645,1781888119000,-151.0,0.00036164,30]
[425780644,1781888119000,-958.15,0.00036164,30]
[425780646,1781888119000,-621.71,0.00036164,30]
[425780647,1781888119000,-151.0,0.00036164,30]
[425780639,1781888119000,-737.33,0.00036164,30]
[425780652,1781888120000,-721.82,0.00036164,30]
[425780648,1781888120000,-502.42,0.00036164,30]
[425780650,1781888120000,-575.14,0.00036164,30]
[425780649,1781888120000,-537.57,0.00036164,30]
[425780651,1781888120000,-500.0,0.00036164,30]
[425780653,1781888120000,-500.0,0.00036164,30]
[425780655,1781888120000,-291.61913666,0.00036164,30]
[425780656,1781888120000,-1264.79,0.00036164,30]
[425780658,1781888120000,-1847.83,0.00036164,30]
[425780657,1781888120000,-500.0,0.00036164,30]
[425780659,1781888120000,-552.56,0.00036164,30]
[425780661,1781888120000,-1265.07,0.00036164,30]
[425780660,1781888120000,-757.69,0.00036164,30]
[425780654,1781888120000,-1000.0,0.00036164,30]
[425780662,1781888120000,-500.0,0.00036164,30]
[425780663,1781888121000,-693.9,0.00036164,30]
[425780664,1781888121000,-510.64,0.00036164,30]
[425780665,1781888121000,-2137.39,0.00036164,30]
[425780666,1781888121000,-1423.78,0.00036164,30]
[425780667,1781888121000,-1172.01,0.00036164,30]
[425780668,1781888121000,-1391.17,0.00036164,30]
[425780671,1781888121000,-721.41,0.00036164,30]
[425780669,1781888121000,-1656.0,0.00036164,30]
[425780673,1781888121000,-500.0,0.00036164,30]
[425780672,1781888121000,-857.32,0.00036164,30]
[425780675,1781888121000,-961.56,0.00036164,30]
[425780674,1781888121000,-534.92,0.00036164,30]
[425780676,1781888121000,-500.0,0.00036164,30]
[425780677,1781888121000,-1123.62,0.00036164,30]
[425780678,1781888121000,-500.0,0.00036164,30]
[425780670,1781888121000,-592.13,0.00036164,30]
[425780685,1781888122000,-562.71,0.00036164,30]
[425780680,1781888122000,-500.0,0.00036164,30]
[425780679,1781888122000,-3646.26,0.00036164,30]
[425780681,1781888122000,-631.67,0.00036164,30]
[425780683,1781888122000,-711.69,0.00036164,30]
[425780682,1781888122000,-1427.66,0.00036164,30]
[425780684,1781888122000,-500.0,0.00036164,30]
[425780686,1781888122000,-500.0,0.00036164,30]
[425780695,1781888122000,-625.28,0.00036219,30]
[425780688,1781888122000,-150.0,0.00036183,120]
[425780690,1781888122000,-150.0,0.00036196,120]
[425780689,1781888122000,-150.0,0.00036184,120]
[425780691,1781888122000,-295147.49698396,0.000362,30]
[425780692,1781888122000,-500.0,0.00036219,30]
[425780693,1781888122000,-902.01,0.00036219,30]
[425780694,1781888122000,-500.0,0.00036219,30]
[425780696,1781888122000,-577.1,0.00036219,30]
[425780687,1781888122000,-150.0,0.00036175,120]
[425780702,1781888123000,-329.48446046,0.00036219,30]
[425780701,1781888123000,-537.63,0.00036219,30]
[425780704,1781888123000,-1241.89,0.00036219,30]
[425780699,1781888123000,-1471.17,0.00036219,30]
[425780698,1781888123000,-500.0,0.00036219,30]
[425780700,1781888123000,-661.85,0.00036219,30]
[425780703,1781888123000,-999.39,0.00036219,30]
[425780697,1781888123000,-500.0,0.00036219,30]
[425780706,1781888123000,-1441.61,0.00036219,30]
[425780707,1781888123000,-694.32,0.00036219,30]
[425780708,1781888123000,-646.27454097,0.00036219,30]
[425780709,1781888123000,-1071.98,0.00036219,30]
[425780710,1781888123000,-768.18,0.00036219,30]
[425780711,1781888123000,-1111.1,0.00036219,30]
[425780712,1781888123000,-500.0,0.00036219,30]
[425780713,1781888123000,-500.0,0.00036219,30]
[425780705,1781888123000,-528.36702759,0.00036219,30]
[425780714,1781888124000,-1407.87,0.00036219,30]
[425780716,1781888124000,-884.27,0.00036219,30]
[425780715,1781888124000,-500.0,0.00036219,30]
[425780717,1781888124000,-802.05,0.00036219,30]
[425780718,1781888124000,-500.0,0.00036219,30]
[425780719,1781888124000,-500.0,0.00036219,30]
[425780720,1781888124000,-1677.91,0.00036219,30]
[425780722,1781888124000,-582.95694805,0.00036219,30]
[425780723,1781888124000,-500.0,0.00036219,30]
[425780724,1781888124000,-563.16,0.00036219,30]
[425780725,1781888124000,-808.38,0.00036219,30]
[425780726,1781888124000,-500.0,0.00036219,30]
[425780727,1781888124000,-500.0,0.00036219,30]
[425780728,1781888124000,-586.92,0.00036219,30]
[425780729,1781888124000,-793.97,0.00036219,30]
[425780721,1781888124000,-636.34,0.00036219,30]
[425780736,1781888125000,-559.72,0.00036219,30]
[425780731,1781888125000,-517.68,0.00036219,30]
[425780730,1781888125000,-500.0,0.00036219,30]
[425780732,1781888125000,-502.59,0.00036219,30]
[425780733,1781888125000,-500.0,0.00036219,30]
[425780734,1781888125000,-588.77,0.00036219,30]
[425780735,1781888125000,-1622.56,0.00036219,30]
[425780738,1781888125000,-545.05,0.00036219,30]
[425780746,1781888125000,-500.0,0.00036219,30]
[425780745,1781888125000,-563.83,0.00036219,30]
[425780744,1781888125000,-631.31,0.00036219,30]
[425780743,1781888125000,-500.0,0.00036219,30]
[425780737,1781888125000,-500.0,0.00036219,30]
[425780741,1781888125000,-500.0,0.00036219,30]
[425780739,1781888125000,-500.0,0.00036219,30]
[425780740,1781888125000,-500.0,0.00036219,30]
[425780742,1781888125000,-500.0,0.00036219,30]
[425780753,1781888126000,-1595.76,0.00036219,30]
[425780747,1781888126000,-677.13,0.00036219,30]
[425780748,1781888126000,-873.12,0.00036219,30]
[425780749,1781888126000,-719.45,0.00036219,30]
[425780750,1781888126000,-997.89,0.00036219,30]
[425780751,1781888126000,-786.02,0.00036219,30]
[425780752,1781888126000,-579.64,0.00036219,30]
[425780755,1781888126000,-544.21,0.00036219,30]
[425780757,1781888126000,-549.11,0.00036219,30]
[425780756,1781888126000,-500.0,0.00036219,30]
[425780758,1781888126000,-1173.72,0.00036219,30]
[425780760,1781888126000,-500.0,0.00036219,30]
[425780759,1781888126000,-500.0,0.00036219,30]
[425780762,1781888126000,-1217.88,0.00036219,30]
[425780761,1781888126000,-742.76,0.00036219,30]
[425780763,1781888126000,-779.91,0.00036219,30]
[425780754,1781888126000,-500.0,0.00036219,30]
[425780768,1781888127000,-317.1314038,0.00036219,30]
[425780770,1781888127000,-1320.43,0.00036219,30]
[425780767,1781888127000,-2382.02,0.00036219,30]
[425780769,1781888127000,-500.0,0.00036219,30]
[425780765,1781888127000,-1153.53,0.00036219,30]
[425780764,1781888127000,-511.18,0.00036219,30]
[425780766,1781888127000,-500.0,0.00036219,30]
[425780772,1781888127000,-500.0,0.00036219,30]
[425780780,1781888127000,-500.0,0.00036219,30]
[425780773,1781888127000,-981.85,0.00036219,30]
[425780775,1781888127000,-500.0,0.00036219,30]
[425780774,1781888127000,-1356.93,0.00036219,30]
[425780776,1781888127000,-500.0,0.00036219,30]
[425780777,1781888127000,-758.06,0.00036219,30]
[425780778,1781888127000,-769.14,0.00036219,30]
[425780779,1781888127000,-1329.2,0.00036219,30]